bitfinex-derivatives/quotes_ETHF0:USTF0_20250404
["timestamp","ask_amount","ask_price","bid_price","bid_amount"]
[1743801410644,4.63761,1821.2,1821.1,4.32470023]
[1743801412245,4.63761,1821.2,1821.1,4.30443476]
[1743801413948,4.63761,1821.2,1821.1,4.30498986]
[1743801414444,4.63761,1821.2,1821.1,5.40363986]
[1743801414645,4.63761,1821.2,1821.1,4.30498986]
[1743801415649,4.63761,1821.2,1821.1,4.30504205]
[1743801416542,4.63761,1821.2,1821.1,5.40369205]
[1743801417644,4.63761,1821.2,1821.1,5.40373709]
[1743801419359,4.63761,1821.2,1821.1,4.88288316]
[1743801419664,4.63761,1821.2,1821.1,5.40354882]
[1743801420258,1.09851,1821.4,1821.3,1.09847]
[1743801420463,1.09851,1821.4,1821.3,5.63105858]
[1743801420763,1.09851,1821.4,1821.3,7.12325858]
[1743801420965,1.09851,1821.4,1821.3,7.12268189]
[1743801421558,1.09851,1821.4,1821.3,7.84229213]
[1743801422564,1.09851,1821.4,1821.3,7.8423882]
[1743801423458,1.09851,1821.4,1821.3,3.5361182]
[1743801423657,1.09851,1821.4,1821.3,2.73228168]
[1743801423853,3.25681,1821.4,1821.3,2.73228168]
[1743801424260,3.25681,1821.4,1821.3,2.01270432]
[1743801425965,3.25681,1821.4,1821.3,3.9151225]
[1743801426167,1.82301,1821.4,1821.3,3.9151225]
[1743801426564,1.09851,1821.4,1821.3,3.9151225]
[1743801426764,1.09851,1821.4,1821.3,2.8165925]
[1743801427965,1.09851,1821.4,1821.3,2.01336111]
[1743801428166,2.50651,1821.4,1821.3,2.01336111]
[1743801429566,2.98171,1821.4,1821.3,2.01336111]
[1743801431668,2.98171,1821.4,1821.3,0.52116111]
[1743801432069,1.09859,1821.2,1821.1,2.8598]
[1743801432268,4.63759,1821.2,1821.1,4.90757483]
[1743801432463,4.63759,1821.2,1821.1,0.52146441]
[1743801432668,1.09865,1821.1,1821.0,0.00822323]
[1743801432870,5.81465,1821.1,1821.0,0.52995018]
[1743801433073,6.36425,1821.1,1821.0,0.52995018]
[1743801433276,6.36425,1821.1,1821.0,0.00822323]
[1743801433674,6.36425,1821.1,1821.0,0.5300444]
[1743801433970,4.85605,1821.1,1821.0,0.5300444]
[1743801434169,1.09865,1821.1,1821.0,2.09938957]
[1743801434474,1.09865,1821.1,1821.0,3.49458957]
[1743801435374,1.09865,1821.1,1821.0,3.49468966]
[1743801435573,1.09865,1821.1,1821.0,2.68904449]
[1743801435774,1.09865,1821.1,1821.0,3.49511705]
[1743801437176,1.09865,1821.1,1821.0,3.49581751]
[1743801439079,1.09865,1821.1,1821.0,3.49542258]
[1743801441280,1.09865,1821.1,1821.0,3.49543391]
[1743801446277,1.0989,1820.8,1820.7,1.09889]
[1743801446485,4.6379,1820.8,1820.7,0.80701022]
[1743801446681,4.6379,1820.8,1820.7,1.90590022]
[1743801446883,4.6379,1820.8,1820.7,42.70590022]
[1743801447285,4.6379,1820.8,1820.7,43.40754787]
[1743801447581,4.6379,1820.8,1820.7,44.94364787]
[1743801448378,4.6379,1820.8,1820.7,44.9431457]
[1743801450186,4.6379,1820.8,1820.7,44.13663765]
[1743801450376,4.6379,1820.8,1820.7,44.94271451]
[1743801451584,4.6379,1820.8,1820.7,43.14217686]
[1743801452089,4.6379,1820.8,1820.7,43.14233487]
[1743801453890,4.6379,1820.8,1820.7,43.14277187]
[1743801454388,4.6379,1820.8,1820.7,44.24166187]
[1743801454689,4.6379,1820.8,1820.7,43.14277187]
[1743801454989,4.6379,1820.8,1820.7,44.24166187]
[1743801455289,4.6379,1820.8,1820.7,43.14277187]
[1743801455492,4.6379,1820.8,1820.7,44.24162795]
[1743801456589,4.6379,1820.8,1820.7,44.94295836]
[1743801457193,4.6379,1820.8,1820.7,44.24162795]
[1743801458491,4.6379,1820.8,1820.7,44.94309552]
[1743801459083,4.6379,1820.8,1820.7,43.84420552]
[1743801459293,4.6379,1820.8,1820.7,44.94309552]
[1743801459487,4.6379,1820.8,1820.7,43.84420552]
[1743801460185,4.6379,1820.8,1820.7,43.14273795]
[1743801461392,4.6379,1820.8,1820.7,43.14318503]
[1743801461783,4.6379,1820.8,1820.7,2.34318503]
[1743801462591,7.8457,1820.8,1820.7,2.34318503]
[1743801462789,9.3166,1820.8,1820.7,0.92110253]
[1743801462989,1.09889,1820.7,1820.6,1.48302323]
[1743801463195,2.56979,1820.7,1820.6,0.76152323]
[1743801463395,2.56979,1820.7,1820.6,1.56863561]
[1743801463590,2.56979,1820.7,1820.6,2.09614688]
[1743801464199,2.56979,1820.7,1820.6,1.34284688]
[1743801464795,2.56979,1820.7,1820.6,0.5357345]
[1743801465096,5.06979,1820.7,1820.6,0.5357345]
[1743801465293,5.06979,1820.7,1820.6,0.00822323]
[1743801476808,5.61939,1820.7,1820.6,0.00822323]
[1743801477909,5.18749,1820.7,1820.6,0.00822323]
[1743801478103,5.18749,1820.7,1820.6,0.74572323]
[1743801478605,5.18749,1820.7,1820.6,2.17562323]
[1743801481705,6.72269,1820.7,1820.6,2.17562323]
[1743801485514,5.18749,1820.7,1820.6,2.17562323]
[1743801490320,5.18649,1820.7,1820.6,2.17562323]
[1743801490621,5.18649,1820.7,1820.6,2.70232933]
[1743801491121,5.18649,1820.7,1820.6,2.70248518]
[1743801492309,5.18649,1820.7,1820.6,2.702654]
[1743801492511,1.64849,1820.7,1820.6,2.702654]
[1743801492814,5.18649,1820.7,1820.6,3.801604]
[1743801493016,5.18649,1820.7,1820.6,4.60789124]
[1743801494017,0.5496,1820.7,1820.6,4.60789124]
[1743801494218,3.2078,1820.8,1820.7,1.09889]
[1743801494428,4.63683,1820.8,1820.7,3.86821944]
[1743801494722,3.538,1820.8,1820.7,3.86821944]
[1743801495814,4.63683,1820.8,1820.7,3.86821944]
[1743801497422,1.09883,1820.8,1820.7,3.86821944]
[1743801497616,1.10704323,1820.9,1820.8,1.09883]
[1743801497816,4.64504323,1820.9,1820.8,3.80307816]
[1743801498118,4.64504323,1820.9,1820.8,4.60722317]
[1743801501514,4.64504323,1820.9,1820.8,4.07955371]
[1743801501722,4.64504323,1820.9,1820.8,4.60449148]
[1743801502725,4.64504323,1820.9,1820.8,4.60454783]
[1743801502925,0.00822323,1820.9,1820.8,7.10454783]
[1743801503118,0.00822323,1820.9,1820.8,5.33644783]
[1743801503314,0.00822323,1820.9,1820.8,4.81151006]
[1743801503517,0.00822323,1820.9,1820.8,5.3363503]
[1743801504326,1.10699323,1820.9,1820.8,5.3363503]
[1743801504527,0.00822323,1820.9,1820.8,5.3363503]
[1743801505517,1.10699323,1820.9,1820.8,5.3363503]
[1743801505722,1.10699323,1820.9,1820.8,5.33612589]
[1743801505926,0.00822323,1820.9,1820.8,5.33612589]
[1743801507127,1.10699323,1820.9,1820.8,5.33606396]
[1743801507323,0.00822323,1820.9,1820.8,5.33606396]
[1743801507628,1.10699323,1820.9,1820.8,5.33606396]
[1743801510235,0.00822323,1820.9,1820.8,5.33606396]
[1743801510831,0.00822323,1820.9,1820.8,5.33635781]
[1743801514640,1.10699323,1820.9,1820.8,5.33635781]
[1743801517029,1.10699323,1820.9,1820.8,4.23752781]
[1743801517233,4.31479323,1820.9,1820.8,0.52480489]
[1743801517436,1.09889,1820.7,1820.6,3.23155323]
[1743801517739,4.63489,1820.7,1820.6,4.56129146]
[1743801518243,4.63489,1820.7,1820.6,4.56143807]
[1743801519648,4.63489,1820.7,1820.6,5.2613029]
[1743801520035,4.63489,1820.7,1820.6,3.93141806]
[1743801520236,4.63489,1820.7,1820.6,5.26226667]
[1743801521749,4.63489,1820.7,1820.6,4.16333667]
[1743801522045,4.63489,1820.7,1820.6,5.26314278]
[1743801523851,4.63489,1820.7,1820.6,5.26351476]
[1743801524145,4.63489,1820.7,1820.6,3.47086476]
[1743801524350,5.38259,1820.7,1820.6,1.34029993]
[1743801524954,6.84559,1820.7,1820.6,1.34029993]
[1743801525144,6.84559,1820.7,1820.6,0.5349363]
[1743801525444,6.84559,1820.7,1820.6,0.53448351]
[1743801525751,6.84559,1820.7,1820.6,0.5343559]
[1743801527339,10.05339,1820.7,1820.6,0.00822323]
[1743801527544,12.55339,1820.7,1820.6,0.00822323]
[1743801529250,9.34559,1820.7,1820.6,0.00822323]
[1743801530650,6.84559,1820.7,1820.6,0.53399212]
[1743801531049,6.84559,1820.7,1820.6,0.53395607]
[1743801531452,6.84559,1820.7,1820.6,0.53392704]
[1743801533052,6.84559,1820.7,1820.6,0.00822323]
[1743801535950,6.84559,1820.7,1820.6,0.53352973]
[1743801536158,6.84559,1820.7,1820.6,2.01742973]
[1743801537856,7.39519,1820.7,1820.6,2.01742973]
[1743801538961,5.18449,1820.7,1820.6,2.01757643]
[1743801539152,5.18449,1820.7,1820.6,3.45377643]
[1743801540658,5.18449,1820.7,1820.6,3.4539317]
[1743801542062,5.18449,1820.7,1820.6,3.45399436]
[1743801543757,5.18449,1820.7,1820.6,3.45411204]
[1743801544358,6.62819,1820.7,1820.6,3.45411204]
[1743801546160,6.62819,1820.7,1820.6,2.71241204]
[1743801546361,6.62819,1820.7,1820.6,0.53401204]
[1743801546568,10.31189,1820.7,1820.6,0.00822323]
[1743801548764,11.713,1820.7,1819.7,3.2078]
[1743801549063,1.09925,1820.1,1820.0,1.4682]
[1743801549368,7.84305,1820.1,1820.0,1.99445727]
[1743801550064,9.26515,1820.1,1820.0,1.99445727]
[1743801552064,9.26515,1820.1,1820.0,1.4682]
[1743801554173,1.09931,1820.0,1819.9,0.74322323]
[1743801554373,2.53431,1820.0,1819.9,1.26873078]
[1743801554970,2.53431,1820.0,1819.9,1.26874668]
[1743801555169,2.53431,1820.0,1819.9,0.00822323]
[1743801556974,3.08391,1820.0,1819.9,0.00822323]
[1743801560274,39.1226,1820.0,1819.4,3.2078]
[1743801560576,1.09962,1819.5,1819.4,3.2078]
[1743801560775,4.63662,1819.5,1819.4,44.0078]
[1743801561374,4.63662,1819.5,1819.4,3.2078]
[1743801561975,4.63662,1819.5,1819.4,4.6061]
[1743801566272,4.63662,1819.5,1819.4,1.3983]
[1743801576581,1.09962,1819.5,1819.4,1.3983]
[1743801576781,1.09962,1819.5,1819.4,1.92369782]
[1743801576782,4.63662,1819.5,1819.4,1.92369782]
[1743801578094,4.63662,1819.5,1819.4,2.72472581]
[1743801578393,4.63662,1819.5,1819.4,3.82440581]
[1743801578892,4.63662,1819.5,1819.4,3.82506458]
[1743801579084,4.63662,1819.5,1819.4,2.72538458]
[1743801579279,1.10783323,1819.6,1819.4,5.22538458]
[1743801579486,0.00822323,1819.6,1819.5,7.11217881]
[1743801579885,0.00822323,1819.6,1819.5,9.61217881]
[1743801580289,1.10778323,1819.6,1819.5,10.3119702]
[1743801581596,0.00822323,1819.6,1819.5,10.3119702]
[1743801581990,1.09945,1819.8,1819.7,1.09949]
[1743801582194,1.09945,1819.8,1819.7,6.3342402]
[1743801582685,4.63643,1819.9,1819.8,1.09943]
[1743801582881,4.63643,1819.9,1819.8,3.93758881]
[1743801584497,4.63643,1819.9,1819.8,3.93725434]
[1743801585387,4.63643,1819.9,1819.8,4.65315434]
[1743801585594,4.63643,1819.9,1819.8,4.65233717]
[1743801585989,4.63643,1819.9,1819.8,3.55290717]
[1743801586187,4.63643,1819.9,1819.8,2.75251279]
[1743801586387,4.63643,1819.9,1819.8,3.851996]
[1743801587596,4.63643,1819.9,1819.8,4.65259782]
[1743801589700,4.63643,1819.9,1819.8,4.65233137]
[1743801590090,4.63643,1819.9,1819.8,4.65217623]
[1743801591906,4.63643,1819.9,1819.8,4.65190037]
[1743801593001,1.09943,1819.9,1819.8,4.65190037]
[1743801594203,1.09943,1819.9,1819.8,3.85177167]
[1743801594595,1.09943,1819.9,1819.8,4.65182124]
[1743801595604,1.09943,1819.9,1819.8,4.65169985]
[1743801596904,1.09943,1819.9,1819.8,4.65169194]
[1743801599402,1.09943,1819.9,1819.8,4.65195133]
[1743801600909,1.09943,1819.9,1819.8,4.65206092]
[1743801605003,1.09943,1819.9,1819.8,3.85168308]
[1743801605209,1.09943,1819.9,1819.8,5.35382778]
[1743801606308,1.09943,1819.9,1819.8,3.54130701]
[1743801606509,2.48823,1819.9,1819.8,3.54130701]
[1743801607407,2.48823,1819.9,1819.8,4.64073701]
[1743801608104,2.48823,1819.9,1819.8,4.64191224]
[1743801609910,2.48823,1819.9,1819.8,4.64233245]
[1743801611109,1.09943,1819.9,1819.8,4.64233245]
[1743801611811,1.09943,1819.9,1819.8,4.64246691]
[1743801613713,1.09943,1819.9,1819.8,4.64394025]
[1743801615415,1.09943,1819.9,1819.8,5.36754025]
[1743801617411,1.09943,1819.9,1819.8,5.36862713]
[1743801619317,1.09943,1819.9,1819.8,5.36850488]
[1743801620427,1.09943,1819.9,1819.8,3.13390488]
[1743801620629,1.09943,1819.9,1819.8,5.31750488]
[1743801621127,1.09943,1819.9,1819.8,5.31815551]
[1743801623128,1.09943,1819.9,1819.8,5.31815511]
[1743801624834,1.09943,1819.9,1819.8,5.31817138]
[1743801625135,1.09943,1819.9,1819.8,5.31817884]
[1743801627936,1.10759323,1820.0,1819.9,1.09937]
[1743801628231,1.10759323,1820.0,1819.9,4.65769721]
[1743801628632,1.10759323,1820.0,1819.9,5.35831884]
[1743801630534,1.10759323,1820.0,1819.9,5.35777243]
[1743801632735,1.10759323,1820.0,1819.9,5.35773572]
[1743801634240,1.10759323,1820.0,1819.9,5.35761674]
[1743801636241,1.10759323,1820.0,1819.9,2.03444674]
[1743801636439,5.04649323,1820.0,1819.9,0.52865408]
[1743801636639,1.09949,1819.7,1819.6,1.4069]
[1743801636838,4.63449,1819.7,1819.6,2.74127081]
[1743801638040,4.63449,1819.7,1819.6,2.74100162]
[1743801639745,4.63449,1819.7,1819.6,2.73953475]
[1743801641647,4.63449,1819.7,1819.6,2.73904756]
[1743801647146,4.63449,1819.7,1819.6,1.93505625]
[1743801647341,4.63449,1819.7,1819.6,2.73825738]
[1743801650045,4.63449,1819.7,1819.6,5.94605738]
[1743801650251,4.63449,1819.7,1819.6,2.73825738]
[1743801652756,4.67260742,1819.7,1819.6,3.47855738]
[1743801653348,4.67260742,1819.7,1819.6,3.47846469]
[1743801654154,1.13760742,1819.7,1819.6,3.47846469]
[1743801654454,4.67260742,1819.7,1819.6,2.67504796]
[1743801655048,4.67260742,1819.7,1819.6,3.47846866]
[1743801656158,4.67260742,1819.7,1819.6,3.47845983]
[1743801656558,4.67260742,1819.7,1819.6,3.4784132]
[1743801660352,4.67260742,1819.7,1819.6,3.47860497]
[1743801660960,6.08880742,1819.7,1819.6,1.93487695]
[1743801661563,0.03811742,1819.7,1819.6,2.73881757]
[1743801661762,0.03811742,1819.7,1819.6,7.04617757]
[1743801662064,0.03811742,1819.7,1819.6,7.74869351]
[1743801663458,0.03811742,1819.7,1819.6,7.04617757]
[1743801663658,0.03811742,1819.7,1819.6,7.74885715]
[1743801664263,0.03811742,1819.7,1819.6,10.24885715]
[1743801667162,0.03811742,1819.7,1819.6,10.24875244]
[1743801669064,0.03811742,1819.7,1819.6,10.24834557]
[1743801670770,0.03811742,1819.7,1819.6,10.24784802]
[1743801673969,1.10755323,1820.0,1819.9,1.09937]
[1743801674270,1.10755323,1820.0,1819.9,5.63807844]
[1743801674468,1.10755323,1820.0,1819.9,5.11000711]
[1743801674771,1.10755323,1820.0,1819.9,6.34006401]
[1743801674972,1.10755323,1820.0,1819.9,7.04296401]
[1743801676467,1.10755323,1820.0,1819.9,7.04262169]
[1743801677671,1.10755323,1820.0,1819.9,8.48672169]
[1743801680168,1.10755323,1820.0,1819.9,8.48616063]
[1743801682174,1.10755323,1820.0,1819.9,8.48617155]
[1743801683174,2.60585323,1820.0,1819.9,8.48617155]
[1743801685476,3.36805323,1820.0,1819.9,8.48617155]
[1743801685673,3.36805323,1820.0,1819.9,8.48626144]
[1743801685874,3.36805323,1820.0,1819.9,5.27846144]
[1743801687078,3.36805323,1820.0,1819.9,4.57556144]
[1743801687477,3.36805323,1820.0,1819.9,3.47619144]
[1743801687779,3.36805323,1820.0,1819.9,4.57575314]
[1743801689374,3.36805323,1820.0,1819.9,3.24614958]
[1743801689679,3.36805323,1820.0,1819.9,4.57753611]
[1743801693183,3.36805323,1820.0,1819.9,4.57761353]
[1743801694979,3.36805323,1820.0,1819.9,4.57786783]
[1743801696885,3.36805323,1820.0,1819.9,4.57780573]
[1743801704094,1.86975323,1820.0,1819.9,4.57780573]
[1743801705285,1.86975323,1820.0,1819.9,3.47843573]
[1743801705990,1.86975323,1820.0,1819.9,3.47890464]
[1743801706287,1.86975323,1820.0,1819.9,2.7761579]
[1743801706493,1.86975323,1820.0,1819.9,3.47883687]
[1743801706790,1.86975323,1820.0,1819.9,4.57820687]
[1743801708889,1.86975323,1820.0,1819.9,3.47883687]
[1743801709594,1.86975323,1820.0,1819.9,4.57820687]
[1743801709987,1.86975323,1820.0,1819.9,3.24614897]
[1743801710194,1.86975323,1820.0,1819.9,3.47928677]
[1743801711597,1.86975323,1820.0,1819.9,3.47946824]
[1743801711800,3.29945323,1820.0,1819.9,3.47946824]
[1743801713397,3.29945323,1820.0,1819.9,3.47952168]
[1743801713699,3.29945323,1820.0,1819.9,3.47965716]
[1743801715598,3.29945323,1820.0,1819.9,3.47965027]
[1743801716200,1.86975323,1820.0,1819.9,3.47965027]
[1743801716601,1.86975323,1820.0,1819.9,4.57902027]
[1743801717000,1.10755323,1820.0,1819.9,4.57902027]
[1743801717499,1.10755323,1820.0,1819.9,4.57900315]
[1743801719300,1.10755323,1820.0,1819.9,4.57901027]
[1743801720901,1.10755323,1820.0,1819.9,4.57917748]
[1743801722001,1.10755323,1820.0,1819.9,45.37917748]
[1743801722498,1.10755323,1820.0,1819.9,45.37929313]
[1743801724302,1.10755323,1820.0,1819.9,45.37917599]
[1743801726103,1.10755323,1820.0,1819.9,45.37893342]
[1743801728505,1.10755323,1820.0,1819.9,45.37874482]
[1743801729805,1.10755323,1820.0,1819.9,45.37853131]
[1743801731707,1.10755323,1820.0,1819.9,45.37845289]
[1743801733106,1.10755323,1820.0,1819.9,48.58625289]
[1743801733503,1.10755323,1820.0,1819.9,47.25394897]
[1743801733805,1.10755323,1820.0,1819.9,48.58617211]
[1743801734505,1.10755323,1820.0,1819.9,48.58624757]
[1743801734905,1.10755323,1820.0,1819.9,47.48687757]
[1743801735606,1.10755323,1820.0,1819.9,6.68687757]
[1743801735905,2.53115323,1820.0,1819.9,6.68687757]
[1743801737598,2.53115323,1820.0,1819.9,5.9841986]
[1743801739296,2.53115323,1820.0,1819.9,5.98442752]
[1743801741008,2.53115323,1820.0,1819.9,5.98414763]
[1743801741603,1.10755323,1820.0,1819.9,7.08351763]
[1743801742212,1.10755323,1820.0,1819.9,7.7862531]
[1743801744815,1.10755323,1820.0,1819.9,4.57824711]
[1743801750320,1.10755323,1820.0,1819.9,4.57828129]
[1743801752722,1.10755323,1820.0,1819.9,3.24620547]
[1743801752919,1.10755323,1820.0,1819.9,2.54347]
[1743801756618,1.65715323,1820.0,1819.9,2.54347]
[1743801756824,1.10755323,1820.0,1819.9,2.54347]
[1743801758022,1.65715323,1820.0,1819.9,2.54347]
[1743801758222,1.10755323,1820.0,1819.9,2.54347]
[1743801759025,1.65715323,1820.0,1819.9,4.57727884]
[1743801759225,1.10755323,1820.0,1819.9,3.4779067]
[1743801760019,1.65715323,1820.0,1819.9,3.4779067]
[1743801760221,1.10755323,1820.0,1819.9,3.4779067]
[1743801760618,1.65715323,1820.0,1819.9,4.5772767]
[1743801761130,1.65715323,1820.0,1819.9,4.5772975]
[1743801761530,1.10755323,1820.0,1819.9,3.4779275]
[1743801761723,1.65715323,1820.0,1819.9,3.4779275]
[1743801761920,1.10755323,1820.0,1819.9,3.4779275]
[1743801762123,1.65715323,1820.0,1819.9,4.5772975]
[1743801762831,1.10755323,1820.0,1819.9,4.5772975]
[1743801763030,1.65715323,1820.0,1819.9,4.57757595]
[1743801763229,1.10755323,1820.0,1819.9,4.57757595]
[1743801763834,1.65715323,1820.0,1819.9,4.57757595]
[1743801764132,1.10755323,1820.0,1819.9,4.57757595]
[1743801764721,1.10755323,1820.0,1819.9,3.47820595]
[1743801764927,1.65715323,1820.0,1819.9,3.47815011]
[1743801765130,1.10755323,1820.0,1819.9,3.47815011]
[1743801765628,1.65715323,1820.0,1819.9,3.47815011]
[1743801765826,1.10755323,1820.0,1819.9,3.47815011]
[1743801766026,1.10755323,1820.0,1819.9,3.47806975]
[1743801766433,1.65715323,1820.0,1819.9,3.47806975]
[1743801766634,1.10755323,1820.0,1819.9,3.47806975]
[1743801766827,1.65715323,1820.0,1819.9,3.47810323]
[1743801767327,1.10755323,1820.0,1819.9,3.478228]
[1743801768033,1.65715323,1820.0,1819.9,3.478228]
[1743801768533,1.10755323,1820.0,1819.9,3.478228]
[1743801768728,1.10755323,1820.0,1819.9,3.47863806]
[1743801771138,1.65715323,1820.0,1819.9,3.47863806]
[1743801771337,1.10755323,1820.0,1819.9,3.47863806]
[1743801771936,1.10755323,1820.0,1819.9,4.57800806]
[1743801772137,1.10755323,1820.0,1819.9,3.47863806]
[1743801772933,1.65715323,1820.0,1819.9,3.47863806]
[1743801773139,1.10755323,1820.0,1819.9,3.47863806]
[1743801774238,1.10755323,1820.0,1819.9,3.47983931]
[1743801774744,1.10755323,1820.0,1819.9,4.57920931]
[1743801778045,1.10755323,1820.0,1819.9,4.57929086]
[1743801781450,1.10755323,1820.0,1819.9,4.57923028]
[1743801783050,1.10755323,1820.0,1819.9,4.57911439]
[1743801784657,3.53822323,1820.0,1819.9,4.57911439]
[1743801784948,4.63753323,1820.0,1819.9,4.57900295]
[1743801785363,4.63753323,1820.0,1819.9,5.01128531]
[1743801785543,4.63753323,1820.0,1819.9,4.57900295]
[1743801785744,0.00822323,1820.0,1819.9,4.57900295]
[1743801785950,0.00822323,1820.0,1819.9,5.01751656]
[1743801786853,0.00822323,1820.0,1819.9,8.2195954]
[1743801787146,0.00822323,1820.0,1819.9,5.0117954]
[1743801787348,1.10753323,1820.0,1819.9,7.78108179]
[1743801788552,1.10753323,1820.0,1819.9,7.78108833]
[1743801789856,0.00822323,1820.0,1819.9,7.78108833]
[1743801790452,0.00822323,1820.0,1819.9,7.7817985]
[1743801791353,0.00822323,1820.0,1819.9,7.78162944]
[1743801792350,0.00822323,1820.0,1819.9,7.78162628]
[1743801793057,1.10753323,1820.0,1819.9,4.57382628]
[1743801793356,1.10753323,1820.0,1819.9,7.78162628]
[1743801794148,1.10753323,1820.0,1819.9,7.78159823]
[1743801796152,1.10753323,1820.0,1819.9,7.78144833]
[1743801796356,0.00822323,1820.0,1819.9,7.78144833]
[1743801797954,1.10753323,1820.0,1819.9,6.9816739]
[1743801798259,1.10753323,1820.0,1819.9,7.78075226]
[1743801798559,2.60413323,1820.0,1819.9,7.78075226]
[1743801799761,2.60413323,1820.0,1819.9,5.2373927]
[1743801800860,2.60413323,1820.0,1819.9,1.32723721]
[1743801801560,2.60413323,1820.0,1819.9,1.32704816]
[1743801804362,2.60413323,1820.0,1819.9,0.5280879]
[1743801804964,2.60413323,1820.0,1819.9,1.32658576]
[1743801805156,2.60413323,1820.0,1819.9,0.5280879]
[1743801805462,1.09937,1819.9,1819.8,1.09943]
[1743801805661,3.32847,1819.9,1819.8,2.4254993]
[1743801806364,3.32847,1819.9,1819.8,4.60883689]
[1743801807268,3.32847,1819.9,1819.8,4.60876647]
[1743801808166,1.79597,1819.9,1819.8,4.60876647]
[1743801808368,1.79597,1819.9,1819.8,5.35936647]
[1743801809066,1.79597,1819.9,1819.8,5.35913541]
[1743801810869,1.79597,1819.9,1819.8,4.03336759]
[1743801811168,1.79597,1819.9,1819.8,5.35976573]
[1743801816478,1.79597,1819.9,1819.8,4.03336759]
[1743801816682,1.79597,1819.9,1819.8,4.65743911]
[1743801818585,1.79597,1819.9,1819.8,5.35952935]
[1743801818984,1.79597,1819.9,1819.8,4.26009935]
[1743801819588,1.79597,1819.9,1819.8,4.65743911]
[1743801820289,1.79597,1819.9,1819.8,4.65769792]
[1743801821784,1.79597,1819.9,1819.8,5.35989395]
[1743801822289,1.79597,1819.9,1819.8,5.3600052]
[1743801823390,1.09937,1819.9,1819.8,5.3600052]
[1743801825894,1.09937,1819.9,1819.8,5.36009918]
[1743801826294,1.09937,1819.9,1819.8,5.36055993]
[1743801827795,1.09937,1819.9,1819.8,5.36096225]
[1743801828496,1.09937,1819.9,1819.8,4.26153225]
[1743801828900,2.48887,1819.9,1819.8,4.26153225]
[1743801829195,2.48887,1819.9,1819.8,3.5591467]
[1743801829393,2.48887,1819.9,1819.8,2.8085467]
[1743801829599,2.48887,1819.9,1819.8,1.4814]
[1743801829796,2.48887,1819.9,1819.8,2.80921942]
[1743801831201,2.48887,1819.9,1819.8,2.00972513]
[1743801833400,2.48887,1819.9,1819.8,2.00956191]
[1743801835199,2.48887,1819.9,1819.8,1.4814]
[1743801835396,2.48887,1819.9,1819.8,2.00947533]
[1743801839003,2.48887,1819.9,1819.8,0.48995791]
[1743801839202,2.97227,1819.9,1819.8,0.48995791]
[1743801840806,1.09943,1819.8,1819.7,1.4637]
[1743801840997,6.76943,1819.8,1819.7,1.4637]
[1743801842303,1.09949,1819.7,1819.6,0.734]
[1743801842501,1.09949,1819.7,1819.6,2.9983734]
[1743801843606,1.09949,1819.7,1819.6,2.99815561]
[1743801844104,1.09949,1819.7,1819.6,2.99817006]
[1743801844707,1.09949,1819.7,1819.6,2.1993]
[1743801845101,1.09949,1819.7,1819.6,2.99812116]
[1743801845404,1.09949,1819.7,1819.6,2.1993]
[1743801845901,1.09949,1819.7,1819.6,2.9981013]
[1743801846106,2.61999,1819.7,1819.6,2.1993]
[1743801847905,1.09949,1819.7,1819.6,2.1993]
[1743801850606,1.09949,1819.7,1819.3,3.21333546]
[1743801850607,1.09968,1819.4,1819.3,0.00553546]
[1743801850910,1.09974,1819.3,1819.2,0.7433]
[1743801851105,2.63164,1819.3,1819.2,1.27101454]
[1743801851313,5.83944,1819.3,1819.2,1.27101454]
[1743801851610,5.83944,1819.3,1819.2,0.7433]
[1743801852006,1.0998,1819.2,1819.1,0.73562323]
[1743801852198,3.2963,1819.2,1819.1,0.00822323]
[1743801852403,3.2963,1819.2,1819.1,3.23e-06]
[1743801852404,5.7963,1819.2,1819.1,3.23e-06]
[1743801852609,6.3467,1819.2,1819.1,3.23e-06]
[1743801854607,6.44635708,1819.2,1819.1,3.23e-06]
[1743801856013,6.30689066,1819.2,1819.1,3.23e-06]
[1743801857405,6.85729066,1819.2,1819.1,3.23e-06]
[1743801859017,6.75764589,1819.2,1819.1,3.23e-06]
[1743801860312,6.85722944,1819.2,1819.1,3.23e-06]
[1743801860510,6.85723018,1819.2,1819.1,3.23e-06]
[1743801862618,6.75764589,1819.2,1819.1,3.23e-06]
[1743801862813,6.85724264,1819.2,1819.1,3.23e-06]
[1743801863122,6.85724326,1819.2,1819.1,3.23e-06]
[1743801868318,6.85724326,1819.2,1818.9,1.3969]
[1743801868526,1.09998,1818.9,1818.8,1.4707]
[1743801869019,2.62308,1818.9,1818.8,1.4707]
[1743801874822,4.62898,1818.9,1818.8,1.4707]
[1743801876230,6.08838,1818.9,1818.8,1.4707]
[1743801877129,6.63878,1818.9,1818.8,1.4707]
[1743801879422,9.84658,1818.9,1818.8,1.4707]
[1743801881431,44.51258,1818.9,1818.8,1.4707]
[1743801885231,41.30478,1818.9,1818.8,1.4707]
[1743801885922,44.51258,1818.9,1818.8,1.4707]
[1743801889638,43.05318,1818.9,1818.8,1.4707]
[1743801890140,39.52418,1818.9,1818.8,1.99936337]
[1743801890332,43.05318,1818.9,1818.8,1.99936337]
[1743801895053,39.84538,1818.9,1818.8,1.99936337]
[1743801895252,43.05318,1818.9,1818.8,1.99936337]
[1743801895952,42.50278,1818.9,1818.8,1.99947987]
[1743801897948,43.05318,1818.9,1818.8,1.99944446]
[1743801899855,1.1001,1818.7,1818.6,1.4577]
[1743801900054,1.1001,1818.7,1818.6,2.78713557]
[1743801900442,1.1001,1818.7,1818.6,3.52416712]
[1743801900648,0.00824605,1819.0,1818.9,1.09998]
[1743801900953,1.10816605,1819.0,1818.9,2.42941557]
[1743801901146,0.00824605,1819.0,1818.9,45.72941557]
[1743801901350,3.528,1819.1,1819.0,1.09992]
[1743801901648,3.528,1819.1,1819.0,10.33568712]
[1743801902154,4.6278,1819.2,1819.1,1.09982]
[1743801902356,4.6278,1819.2,1819.1,5.34198712]
[1743801902651,1.0998,1819.2,1819.1,7.84198712]
[1743801902851,0.00824605,1819.3,1819.2,1.0998]
[1743801903051,3.53624605,1819.3,1819.2,3.95327436]
[1743801903357,4.63598605,1819.3,1819.2,10.39810591]
[1743801904756,4.63598605,1819.3,1819.2,11.15900591]
[1743801905455,3.53624605,1819.3,1819.2,11.15900591]
[1743801906559,3.53624605,1819.3,1819.2,11.15510953]
[1743801907754,4.63598605,1819.3,1819.2,5.44730953]
[1743801907965,4.63598605,1819.3,1819.2,7.94730953]
[1743801908257,3.53624605,1819.3,1819.2,6.55433155]
[1743801908459,3.53624605,1819.3,1819.2,7.20968747]
[1743801908664,4.63598605,1819.3,1819.2,7.20968747]